{"text_format":"3","workbook":"xlsx","n_sheets":3,"sheets":["Початок","Бюджет і трекер подарунків","Дані"],"not_rendered":{"charts":1,"defined_names":1},"read":"whole","date_system":"1900"}

{"sheet":"Початок","index":0,"n_rows":7,"n_cols":2,"rows_kept":7}
[null,"Інформація про шаблон"]
[null,"Використовуйте цей шаблон для реєстрації покупок подарунків і відстеження їх у бюджеті."]
[null,"Введіть у таблицю імена членів сім’ї та друзів, подарунки, заплановані й витрачені суми, примітки, а також виберіть подію та місяць."]
[null,"Діаграма огляду за місяць оновлюється автоматично."]
[null,"Примітка. "]
[null,"Додаткові вказівки наведено в стовпці A на аркуші \"БЮДЖЕТ І ТРЕКЕР ПОДАРУНКІВ\". Цей текст приховано навмисно. Щоб вилучити текст, виберіть стовпець A й натисніть клавішу Delete. Щоб відобразити текст, виберіть стовпець A та змініть колір шрифту."]
[null,"Щоб дізнатися більше про таблицю, натисніть у ній клавіші Shift+F10, виберіть параметр \"Таблиця\", а потім – \"Текст заміщення\"."]

{"sheet":"Бюджет і трекер подарунків","index":1,"n_rows":10,"n_cols":13,"rows_kept":10,"merged":[[0,1,0,4],[0,5,0,12],[1,1,1,2],[2,1,2,12],[3,1,3,3]]}
["Створіть особистий бюджет і трекер подарунків на цьому аркуші. Заголовок аркуша міститься в клітинці праворуч. Підказка міститься в клітинці F1. Корисні вказівки з використання цього аркуша наведено в клітинках цього стовпця.","Бюджет і трекер подарунків",{"$nulls":3},"Заповніть максимальний обсяг відомостей на початку кожного року. Введіть імена членів сім’ї та друзів, виберіть подію для подарунка, виберіть місяць події й введіть суму, яку ви хочете витратити. Кожна людина може відображатися в таблиці для різних подій кілька разів (день народження, свято, очікування дитини і т. д.)."]
["Підпис \"Огляд за місяць\" міститься в клітинці справа, а підказка – в клітинці D2.","Огляд за місяць",null,"Використовуйте діаграму, щоб переглянути майбутні місяці з метою планування події. Реєструйте свої покупки, щоб відстежувати їх в бюджеті."]
["Стовпчаста діаграма для запланованих сум із фоновою лінійчатою діаграмою для витраченої суми в клітинці справа.","Стовпчаста діаграма для запланованих сум із фоновою лінійчатою діаграмою для витраченої суми міститься в цій клітинці."]
["Підпис \"Бюджет і трекер подарунків\" міститься в клітинці праворуч.","Бюджет і трекер подарунків"]
["Введіть відомості в таблицю \"Контроль бюджету\", починаючи з клітинки праворуч.","Одержувач","Подія","Місяць","Сума\nв бюджеті","Сума\nвитрачено","Подарунок","Посилання на подарунок","У магазині/\nОнлайн","Придбано?","Загорнуто?","Доставлено?","Примітки"]
[null,"Ім’я 1","Дні народження","Червень",{"v":50,"d":"50₴"},{"v":30,"d":"30₴"},"Взуття","Продавець","Онлайн","Так","Ні","Ні","16.06, квитки в кіно"]
[null,"Ім’я 2","Ювілеї","Квітень",{"v":20,"d":"20₴"},{"v":20,"d":"20₴"},"Кішка","Продавець","У магазині","Ні","Ні","Ні","Він згадав, що любить собак"]
[null,"Ім’я 3","Свята","Липень",{"v":50,"d":"50₴"},{"v":70,"d":"70₴"},"Навушники","Продавець","Онлайн","Ні","Ні","Ні","Товари для гуртожитку"]
[null,"Ім’я 4","Дні народження","Січень",{"v":20,"d":"20₴"},{"v":30,"d":"30₴"},"Гра","Продавець","У магазині","Так","Так","Так"]
[null,"Ім’я 5","Весілля","Червень",{"v":100,"d":"100₴"},{"v":150,"d":"150₴"},"Кришталева ваза","Продавець","У магазині","Так","Так","Ні"]

{"sheet":"Дані","index":2,"n_rows":13,"n_cols":8,"rows_kept":13,"hidden":true}
["Події",null,"Дата","Дата","Планова сума\nДні народження","Планова сума\nСвята","Планова сума\nІнше","Витрачена сума"]
["Дні народження",null,"Січень","Січ",{"$f":"SUMIFS(КонтрольБюджету[Сума\nв бюджеті],КонтрольБюджету[Місяць],\"Січень\",КонтрольБюджету[Подія],\"Дні народження\")","v":{"v":20,"d":"20₴"}},{"$f":"SUMIFS(КонтрольБюджету[Сума\nв бюджеті],КонтрольБюджету[Місяць],\"Січень\",КонтрольБюджету[Подія],\"Свята\")","v":{"v":0,"d":"0₴"}},{"$f":"SUMIFS(КонтрольБюджету[Сума\nв бюджеті],КонтрольБюджету[Місяць],\"Січень\",КонтрольБюджету[Подія],\"<>Свята\",КонтрольБюджету[Подія],\"<>Дні народження\")","v":{"v":0,"d":"0₴"}},{"$f":"SUMIFS(КонтрольБюджету[Сума\nвитрачено],КонтрольБюджету[Місяць],\"Січень\")","v":{"v":30,"d":"30₴"}}]
["Свята",null,"Лютий","Лют",{"$f":"SUMIFS(КонтрольБюджету[Сума\nв бюджеті],КонтрольБюджету[Місяць],\"Лютий\",КонтрольБюджету[Подія],\"Дні народження\")","v":{"v":0,"d":"0₴"}},{"$f":"SUMIFS(КонтрольБюджету[Сума\nв бюджеті],КонтрольБюджету[Місяць],\"Лютий\",КонтрольБюджету[Подія],\"Свята\")","v":{"v":0,"d":"0₴"}},{"$f":"SUMIFS(КонтрольБюджету[Сума\nв бюджеті],КонтрольБюджету[Місяць],\"Лютий\",КонтрольБюджету[Подія],\"<>Свята\",КонтрольБюджету[Подія],\"<>Дні народження\")","v":{"v":0,"d":"0₴"}},{"$f":"SUMIFS(КонтрольБюджету[Сума\nвитрачено],КонтрольБюджету[Місяць],\"Лютий\")","v":{"v":0,"d":"0₴"}}]
["Ювілеї",null,"Березень","бер",{"$f":"SUMIFS(КонтрольБюджету[Сума\nв бюджеті],КонтрольБюджету[Місяць],\"Березень\",КонтрольБюджету[Подія],\"Дні народження\")","v":{"v":0,"d":"0₴"}},{"$f":"SUMIFS(КонтрольБюджету[Сума\nв бюджеті],КонтрольБюджету[Місяць],\"Березень\",КонтрольБюджету[Подія],\"Свята\")","v":{"v":0,"d":"0₴"}},{"$f":"SUMIFS(КонтрольБюджету[Сума\nв бюджеті],КонтрольБюджету[Місяць],\"Березень\",КонтрольБюджету[Подія],\"<>Свята\",КонтрольБюджету[Подія],\"<>Дні народження\")","v":{"v":0,"d":"0₴"}},{"$f":"SUMIFS(КонтрольБюджету[Сума\nвитрачено],КонтрольБюджету[Місяць],\"Березень\")","v":{"v":0,"d":"0₴"}}]
["Весілля",null,"Квітень","Кві",{"$f":"SUMIFS(КонтрольБюджету[Сума\nв бюджеті],КонтрольБюджету[Місяць],\"Квітень\",КонтрольБюджету[Подія],\"Дні народження\")","v":{"v":0,"d":"0₴"}},{"$f":"SUMIFS(КонтрольБюджету[Сума\nв бюджеті],КонтрольБюджету[Місяць],\"Квітень\",КонтрольБюджету[Подія],\"Свята\")","v":{"v":0,"d":"0₴"}},{"$f":"SUMIFS(КонтрольБюджету[Сума\nв бюджеті],КонтрольБюджету[Місяць],\"Квітень\",КонтрольБюджету[Подія],\"<>Свята\",КонтрольБюджету[Подія],\"<>Дні народження\")","v":{"v":20,"d":"20₴"}},{"$f":"SUMIFS(КонтрольБюджету[Сума\nвитрачено],КонтрольБюджету[Місяць],\"Квітень\")","v":{"v":20,"d":"20₴"}}]
["Дівич-вечір",null,"Тра","Тра",{"$f":"SUMIFS(КонтрольБюджету[Сума\nв бюджеті],КонтрольБюджету[Місяць],\"Тра\",КонтрольБюджету[Подія],\"Дні народження\")","v":{"v":0,"d":"0₴"}},{"$f":"SUMIFS(КонтрольБюджету[Сума\nв бюджеті],КонтрольБюджету[Місяць],\"Тра\",КонтрольБюджету[Подія],\"Свята\")","v":{"v":0,"d":"0₴"}},{"$f":"SUMIFS(КонтрольБюджету[Сума\nв бюджеті],КонтрольБюджету[Місяць],\"Тра\",КонтрольБюджету[Подія],\"<>Свята\",КонтрольБюджету[Подія],\"<>Дні народження\")","v":{"v":0,"d":"0₴"}},{"$f":"SUMIFS(КонтрольБюджету[Сума\nвитрачено],КонтрольБюджету[Місяць],\"Тра\")","v":{"v":0,"d":"0₴"}}]
["Вечірка для майбутньої мами",null,"Червень","Чер",{"$f":"SUMIFS(КонтрольБюджету[Сума\nв бюджеті],КонтрольБюджету[Місяць],\"Червень\",КонтрольБюджету[Подія],\"Дні народження\")","v":{"v":50,"d":"50₴"}},{"$f":"SUMIFS(КонтрольБюджету[Сума\nв бюджеті],КонтрольБюджету[Місяць],\"Червень\",КонтрольБюджету[Подія],\"Свята\")","v":{"v":0,"d":"0₴"}},{"$f":"SUMIFS(КонтрольБюджету[Сума\nв бюджеті],КонтрольБюджету[Місяць],\"Червень\",КонтрольБюджету[Подія],\"<>Свята\",КонтрольБюджету[Подія],\"<>Дні народження\")","v":{"v":100,"d":"100₴"}},{"$f":"SUMIFS(КонтрольБюджету[Сума\nвитрачено],КонтрольБюджету[Місяць],\"Червень\")","v":{"v":180,"d":"180₴"}}]
["Випускні",null,"Липень","Лип",{"$f":"SUMIFS(КонтрольБюджету[Сума\nв бюджеті],КонтрольБюджету[Місяць],\"Липень\",КонтрольБюджету[Подія],\"Дні народження\")","v":{"v":0,"d":"0₴"}},{"$f":"SUMIFS(КонтрольБюджету[Сума\nв бюджеті],КонтрольБюджету[Місяць],\"Липень\",КонтрольБюджету[Подія],\"Свята\")","v":{"v":50,"d":"50₴"}},{"$f":"SUMIFS(КонтрольБюджету[Сума\nв бюджеті],КонтрольБюджету[Місяць],\"Липень\",КонтрольБюджету[Подія],\"<>Свята\",КонтрольБюджету[Подія],\"<>Дні народження\")","v":{"v":0,"d":"0₴"}},{"$f":"SUMIFS(КонтрольБюджету[Сума\nвитрачено],КонтрольБюджету[Місяць],\"Липень\")","v":{"v":70,"d":"70₴"}}]
["Інше",null,"Серпень","Сер",{"$f":"SUMIFS(КонтрольБюджету[Сума\nв бюджеті],КонтрольБюджету[Місяць],\"Серпень\",КонтрольБюджету[Подія],\"Дні народження\")","v":{"v":0,"d":"0₴"}},{"$f":"SUMIFS(КонтрольБюджету[Сума\nв бюджеті],КонтрольБюджету[Місяць],\"Серпень\",КонтрольБюджету[Подія],\"Свята\")","v":{"v":0,"d":"0₴"}},{"$f":"SUMIFS(КонтрольБюджету[Сума\nв бюджеті],КонтрольБюджету[Місяць],\"Серпень\",КонтрольБюджету[Подія],\"<>Свята\",КонтрольБюджету[Подія],\"<>Дні народження\")","v":{"v":0,"d":"0₴"}},{"$f":"SUMIFS(КонтрольБюджету[Сума\nвитрачено],КонтрольБюджету[Місяць],\"Серпень\")","v":{"v":0,"d":"0₴"}}]
[null,null,"Вересень","Вер",{"$f":"SUMIFS(КонтрольБюджету[Сума\nв бюджеті],КонтрольБюджету[Місяць],\"Вересень\",КонтрольБюджету[Подія],\"Дні народження\")","v":{"v":0,"d":"0₴"}},{"$f":"SUMIFS(КонтрольБюджету[Сума\nв бюджеті],КонтрольБюджету[Місяць],\"Вересень\",КонтрольБюджету[Подія],\"Свята\")","v":{"v":0,"d":"0₴"}},{"$f":"SUMIFS(КонтрольБюджету[Сума\nв бюджеті],КонтрольБюджету[Місяць],\"Вересень\",КонтрольБюджету[Подія],\"<>Свята\",КонтрольБюджету[Подія],\"<>Дні народження\")","v":{"v":0,"d":"0₴"}},{"$f":"SUMIFS(КонтрольБюджету[Сума\nвитрачено],КонтрольБюджету[Місяць],\"Вересень\")","v":{"v":0,"d":"0₴"}}]
[null,null,"Жовтень","Жов",{"$f":"SUMIFS(КонтрольБюджету[Сума\nв бюджеті],КонтрольБюджету[Місяць],\"Жовтень\",КонтрольБюджету[Подія],\"Дні народження\")","v":{"v":0,"d":"0₴"}},{"$f":"SUMIFS(КонтрольБюджету[Сума\nв бюджеті],КонтрольБюджету[Місяць],\"Жовтень\",КонтрольБюджету[Подія],\"Свята\")","v":{"v":0,"d":"0₴"}},{"$f":"SUMIFS(КонтрольБюджету[Сума\nв бюджеті],КонтрольБюджету[Місяць],\"Жовтень\",КонтрольБюджету[Подія],\"<>Свята\",КонтрольБюджету[Подія],\"<>Дні народження\")","v":{"v":0,"d":"0₴"}},{"$f":"SUMIFS(КонтрольБюджету[Сума\nвитрачено],КонтрольБюджету[Місяць],\"Жовтень\")","v":{"v":0,"d":"0₴"}}]
[null,null,"Листопад","Лис",{"$f":"SUMIFS(КонтрольБюджету[Сума\nв бюджеті],КонтрольБюджету[Місяць],\"Листопад\",КонтрольБюджету[Подія],\"Дні народження\")","v":{"v":0,"d":"0₴"}},{"$f":"SUMIFS(КонтрольБюджету[Сума\nв бюджеті],КонтрольБюджету[Місяць],\"Листопад\",КонтрольБюджету[Подія],\"Свята\")","v":{"v":0,"d":"0₴"}},{"$f":"SUMIFS(КонтрольБюджету[Сума\nв бюджеті],КонтрольБюджету[Місяць],\"Листопад\",КонтрольБюджету[Подія],\"<>Свята\",КонтрольБюджету[Подія],\"<>Дні народження\")","v":{"v":0,"d":"0₴"}},{"$f":"SUMIFS(КонтрольБюджету[Сума\nвитрачено],КонтрольБюджету[Місяць],\"Листопад\")","v":{"v":0,"d":"0₴"}}]
[null,null,"Грудень","Гру",{"$f":"SUMIFS(КонтрольБюджету[Сума\nв бюджеті],КонтрольБюджету[Місяць],\"Грудень\",КонтрольБюджету[Подія],\"Дні народження\")","v":{"v":0,"d":"0₴"}},{"$f":"SUMIFS(КонтрольБюджету[Сума\nв бюджеті],КонтрольБюджету[Місяць],\"Грудень\",КонтрольБюджету[Подія],\"Свята\")","v":{"v":0,"d":"0₴"}},{"$f":"SUMIFS(КонтрольБюджету[Сума\nв бюджеті],КонтрольБюджету[Місяць],\"Грудень\",КонтрольБюджету[Подія],\"<>Свята\",КонтрольБюджету[Подія],\"<>Дні народження\")","v":{"v":0,"d":"0₴"}},{"$f":"SUMIFS(КонтрольБюджету[Сума\nвитрачено],КонтрольБюджету[Місяць],\"Грудень\")","v":{"v":0,"d":"0₴"}}]